fUST/lending_fUST_20241108
["ID","MTS","AMOUNT","RATE_DAILY","PERIOD"]
[341651756,1731063049157,-761.34,0.00022465,2]
[341651757,1731063049167,-500.0,0.00022465,2]
[341651758,1731063049177,-500.0,0.00022465,2]
[341651759,1731063049187,-500.0,0.00022465,2]
[341651760,1731063049196,-550.67,0.00022465,2]
[341651761,1731063049206,-500.0,0.00022465,2]
[341651762,1731063049219,-500.0,0.00022465,2]
[341651763,1731063049229,-500.0,0.00022465,2]
[341651764,1731063049238,-1833.08,0.00022465,2]
[341651765,1731063049247,-254.45487024,0.00022465,2]
[341651766,1731063049258,-500.0,0.00022465,2]
[341651767,1731063049268,-3229.76,0.00022465,2]
[341651768,1731063049278,-1498.93,0.00022465,2]
[341651769,1731063049288,-500.0,0.00022465,2]
[341651770,1731063049299,-500.0,0.00022548,2]
[341651771,1731063049309,-203.80561347,0.00022639,2]
[341651772,1731063049320,-420.0,0.00022727,2]
[341651773,1731063049330,-806.35,0.00022738,2]
[341651774,1731063049339,-806.35,0.00022738,2]
[341651775,1731063049349,-500.0,0.00022739,2]
[341651776,1731063049359,-500.0,0.00022739,2]
[341651777,1731063049368,-500.0,0.00022739,2]
[341651778,1731063049378,-500.0,0.00022739,2]
[341651779,1731063049388,-524.91520702,0.00022739,2]
[341651780,1731063049397,-500.0,0.00022739,2]
[341651781,1731063049406,-196.71941948,0.00022739,2]
[341651782,1731063049417,-500.0,0.00022739,2]
[341651783,1731063049427,-257.82722025,0.00022739,2]
[341651784,1731063049436,-153.60144088,0.00022739,2]
[341651785,1731063049445,-500.0,0.00022739,2]
[341651786,1731063049455,-500.0,0.00022739,2]
[341651787,1731063049464,-298.22172177,0.00022739,2]
[341651788,1731063049473,-500.0,0.00022739,2]
[341651789,1731063049483,-500.0,0.00022739,2]
[341651790,1731063049492,-500.0,0.00022739,2]
[341651791,1731063049501,-500.0,0.00022739,2]
[341651792,1731063049510,-500.0,0.00022739,2]
[341651793,1731063049520,-500.0,0.00022739,2]
[341651794,1731063049529,-934.23,0.00022739,2]
[341651795,1731063049538,-500.0,0.00022739,2]
[341651796,1731063049547,-500.0,0.00022739,2]
[341651797,1731063049556,-500.0,0.00022739,2]
[341651798,1731063049565,-637.26541532,0.00022739,2]
[341651799,1731063049575,-500.0,0.00022739,2]
[341651800,1731063049584,-504.93,0.00022739,2]
[341651801,1731063049593,-500.0,0.00022739,2]
[341651802,1731063049603,-811.27,0.00022739,2]
[341651803,1731063049611,-500.0,0.00022739,2]
[341651804,1731063049620,-7809.77,0.00022739,2]
[341651805,1731063049630,-6151.2,0.00022739,2]
[341651806,1731063049639,-559.18,0.00022739,2]
[341651807,1731063049648,-500.0,0.00022739,2]
[341651808,1731063049657,-506.39,0.00022739,2]
[341651809,1731063049666,-1255.23,0.00022739,2]
[341651810,1731063049676,-500.0,0.00022739,2]
[341651811,1731063049685,-500.0,0.00022739,2]
[341651812,1731063049694,-453.93866128,0.00022739,2]
[341651813,1731063049703,-500.0,0.00022739,2]
[341651814,1731063049712,-500.0,0.00022739,2]
[341651815,1731063049721,-787.55,0.00022739,2]
[341651816,1731063049731,-500.0,0.00022739,2]
[341651817,1731063049740,-500.0,0.00022739,2]
[341651818,1731063049749,-500.0,0.00022739,2]
[341651819,1731063049758,-500.0,0.00022739,2]
[341651820,1731063049767,-500.0,0.00022739,2]
[341651821,1731063049777,-500.0,0.00022739,2]
[341651822,1731063049786,-542.45032214,0.00022739,2]
[341651823,1731063049795,-761.34,0.00022739,2]
[341651824,1731063049804,-500.0,0.00022739,2]
[341651825,1731063049813,-500.0,0.00022739,2]
[341651826,1731063049823,-500.0,0.00022739,2]
[341651827,1731063049832,-550.67,0.00022739,2]
[341651828,1731063049841,-500.0,0.00022739,2]
[341651829,1731063049850,-500.0,0.00022739,2]
[341651830,1731063049859,-1833.08,0.00022739,2]
[341651831,1731063049868,-3229.76,0.00022739,2]
[341651832,1731063049877,-1498.93,0.00022739,2]
[341651833,1731063049888,-166.666666,0.00022773,2]
[341651834,1731063049898,-501.35716138,0.00022958,2]
[341651835,1731063049907,-420.0,0.0002298,2]
[341651836,1731063049916,-806.35,0.00023012,2]
[341651837,1731063049926,-806.35,0.00023012,2]
[341651838,1731063049935,-151.0,0.00023013,7]
[341651839,1731063049945,-151.0,0.00023013,7]
[341651840,1731063049955,-500.0,0.00023013,2]
[341651841,1731063049964,-500.0,0.00023013,2]
[341651842,1731063049974,-500.0,0.00023013,2]
[341651843,1731063049983,-500.0,0.00023013,2]
[341651844,1731063049993,-500.0,0.00023013,2]
[341651845,1731063050002,-500.0,0.00023013,2]
[341651846,1731063050011,-293.640754,0.00023013,2]
[341651847,1731063050020,-500.0,0.00023013,2]
[341651848,1731063050029,-500.0,0.00023013,2]
[341651849,1731063050038,-351.24492162,0.00023013,2]
[341651850,1731063050047,-449.32048368,0.00023013,2]
[341651851,1731063050056,-500.0,0.00023013,2]
[341651852,1731063050065,-934.23,0.00023013,2]
[341651853,1731063050074,-500.0,0.00023013,2]
[341651854,1731063050085,-500.0,0.00023013,2]
[341651855,1731063050095,-500.0,0.00023013,2]
[341651856,1731063050104,-500.0,0.00023013,2]
[341651857,1731063050114,-500.0,0.00023013,2]
[341651858,1731063050123,-504.93,0.00023013,2]
[341651859,1731063050132,-500.0,0.00023013,2]
[341651860,1731063050142,-811.27,0.00023013,2]
[341651861,1731063050151,-626.66407674,0.00023013,2]
[341651862,1731063050161,-7809.77,0.00023013,2]
[341651863,1731063050171,-6151.2,0.00023013,2]
[341651864,1731063050180,-559.18,0.00023013,2]
[341651865,1731063050190,-506.39,0.00023013,2]
[341651866,1731063050201,-1255.23,0.00023013,2]
[341651867,1731063050212,-500.0,0.00023013,2]
[341651868,1731063050223,-500.0,0.00023013,2]
[341651869,1731063050232,-500.0,0.00023013,2]
[341651870,1731063050242,-500.0,0.00023013,2]
[341651871,1731063050251,-787.55,0.00023013,2]
[341651872,1731063050261,-500.0,0.00023013,2]
[341651873,1731063050270,-500.0,0.00023013,2]
[341651874,1731063050279,-500.0,0.00023013,2]
[341651875,1731063050288,-500.0,0.00023013,2]
[341651876,1731063050299,-500.0,0.00023013,2]
[341651877,1731063050308,-500.0,0.00023013,2]
[341651878,1731063050317,-761.34,0.00023013,2]
[341651879,1731063050326,-500.0,0.00023013,2]
[341651880,1731063050335,-500.0,0.00023013,2]
[341651881,1731063050345,-500.0,0.00023013,2]
[341651882,1731063050355,-550.67,0.00023013,2]
[341651883,1731063050365,-1833.08,0.00023013,2]
[341651884,1731063050375,-3229.76,0.00023013,2]
[341651885,1731063050386,-1498.93,0.00023013,2]
[341651886,1731063050396,-203.80561347,0.0002305,2]
[341651887,1731063050406,-500.0,0.00023079,2]
[341651888,1731063050416,-500.0,0.00023079,2]
[341651889,1731063050428,-501.12172304,0.00023079,2]
[341651890,1731063050437,-500.0,0.00023079,2]
[341651891,1731063050446,-1110.40689617,0.00023266,2]
[341651892,1731063050455,-806.35,0.00023286,2]
[341651893,1731063050465,-806.35,0.00023286,2]
[341651894,1731063050475,-500.0,0.00023287,2]
[341651895,1731063050485,-500.0,0.00023287,2]
[341651896,1731063050495,-500.0,0.00023287,2]
[341651897,1731063050505,-500.0,0.00023287,2]
[341651898,1731063050514,-500.0,0.00023287,2]
[341651899,1731063050523,-500.0,0.00023287,2]
[341651900,1731063050532,-500.0,0.00023287,2]
[341651901,1731063050541,-500.0,0.00023287,2]
[341651902,1731063050550,-934.23,0.00023287,2]
[341651903,1731063050559,-500.0,0.00023287,2]
[341651904,1731063050569,-500.0,0.00023287,2]
[341651905,1731063050579,-500.0,0.00023287,2]
[341651906,1731063050588,-500.0,0.00023287,2]
[341651907,1731063050598,-500.0,0.00023287,2]
[341651908,1731063050694,-504.93,0.00023287,2]
[341651909,1731063050704,-582.15168773,0.00023287,2]
[341651910,1731063050713,-811.27,0.00023287,2]
[341651911,1731063050722,-7809.77,0.00023287,2]
[341651912,1731063050731,-1804.89224012,0.00023287,2]
[341651913,1731063050747,-262.0,0.00023287,2]
[341651914,1731063050759,-2091.29669199,0.00023287,2]
[341651915,1731063089559,694.44444444,0.00020843,2]
[341651920,1731063321787,166.305324,0.00013973,2]
[341651924,1731063640938,186.059766,0.00020609,2]
[341651926,1731063694537,650.0,0.00020843,2]
[341651927,1731063700568,694.44444444,0.00020843,2]
[341651934,1731063839361,10000.0,0.00020843,2]
[341651935,1731063851741,2892.0,0.00020843,2]
[341651942,1731064105544,164.937876,0.00013973,2]
[341652034,1731064232074,-282.266962,0.00020866,2]
[341652035,1731064232084,-149.933038,0.00021233,2]
[341652036,1731064232097,-544.51140644,0.00021233,2]
[341652037,1731064232106,-39.98859356,0.00021778,2]
[341652045,1731064238017,-110.30715644,0.00021778,2]
[341652046,1731064238027,-886.70266731,0.00021779,2]
[341652047,1731064238069,-1113.29733169,0.00021779,2]
[341652048,1731064238079,-197.21499596,0.00021816,2]
[341652049,1731064238088,-197.21499596,0.00021817,2]
[341652050,1731064238101,-176.61009319,0.00021817,2]
[341652051,1731064238111,-238.02676993,0.0002185,2]
[341652052,1731064238122,-693.43108014,0.0002185,2]
[341652053,1731064238336,-68.54214993,0.0002185,2]
[341652054,1731064238346,-300.0,0.00021916,2]
[341652055,1731064238356,-300.0,0.00021916,2]
[341652056,1731064238365,-119.65926419,0.00021917,2]
[341652057,1731064238376,-307.61282552,0.00021917,2]
[341652058,1731064238386,-524.07890578,0.00021917,2]
[341652059,1731064238396,-500.0,0.00021917,2]
[341652060,1731064238406,-500.0,0.00021917,2]
[341652061,1731064238415,-500.0,0.00021917,2]
[341652062,1731064238424,-500.0,0.00021917,2]
[341652063,1731064238433,-500.0,0.00021917,2]
[341652064,1731064238443,-500.0,0.00021917,2]
[341652065,1731064238452,-500.0,0.00021917,2]
[341652066,1731064238461,-500.0,0.00021917,2]
[341652067,1731064238471,-500.0,0.00021917,2]
[341652068,1731064238480,-500.0,0.00021917,2]
[341652069,1731064238490,-500.0,0.00021917,2]
[341652070,1731064238499,-500.0,0.00021917,2]
[341652071,1731064238509,-210.26733421,0.00021917,2]
[341652072,1731064238519,-500.0,0.00021917,2]
[341652073,1731064238528,-500.0,0.00021917,2]
[341652074,1731064238537,-500.0,0.00021917,2]
[341652075,1731064238547,-500.0,0.00021917,2]
[341652076,1731064238556,-500.0,0.00021917,2]
[341652077,1731064238565,-500.0,0.00021917,2]
[341652078,1731064238574,-500.0,0.00021917,2]
[341652079,1731064238583,-500.0,0.00021917,2]
[341652080,1731064238594,-500.0,0.00021917,2]
[341652081,1731064238603,-500.0,0.00021917,2]
[341652082,1731064238612,-500.0,0.00021917,2]
[341652083,1731064238621,-500.0,0.00021917,2]
[341652084,1731064238630,-500.0,0.00021917,2]
[341652085,1731064238639,-500.0,0.00021917,2]
[341652086,1731064238648,-500.0,0.00021917,2]
[341652087,1731064238661,-500.0,0.00021917,2]
[341652088,1731064238670,-500.0,0.00021917,2]
[341652089,1731064238679,-500.0,0.00021917,2]
[341652090,1731064238688,-500.0,0.00021917,2]
[341652091,1731064238698,-500.0,0.00021917,2]
[341652092,1731064238707,-500.0,0.00021917,2]
[341652093,1731064238717,-500.0,0.00021917,2]
[341652094,1731064238726,-500.0,0.00021917,2]
[341652095,1731064238738,-500.0,0.00021917,2]
[341652096,1731064238748,-500.0,0.00021917,2]
[341652097,1731064238758,-500.0,0.00021917,2]
[341652098,1731064238768,-500.0,0.00021917,2]
[341652099,1731064238777,-500.0,0.00021917,2]
[341652100,1731064238787,-500.0,0.00021917,2]
[341652101,1731064238796,-500.0,0.00021917,2]
[341652102,1731064238806,-500.0,0.00021917,2]
[341652103,1731064238815,-500.0,0.00021917,2]
[341652104,1731064238952,-500.0,0.00021917,2]
[341652105,1731064238962,-580.42209627,0.00021917,2]
[341652106,1731064238973,-500.0,0.00021917,2]
[341652107,1731064238983,-500.0,0.00021917,2]
[341652108,1731064238993,-500.0,0.00021917,2]
[341652109,1731064239002,-500.0,0.00021917,2]
[341652110,1731064239012,-562.45901529,0.00021917,2]
[341652111,1731064239021,-500.0,0.00021917,2]
[341652112,1731064239030,-500.0,0.00021917,2]
[341652113,1731064239039,-500.0,0.00021917,2]
[341652114,1731064239051,-777.21,0.00021917,2]
[341652115,1731064239061,-282.07478881,0.00021917,2]
[341652116,1731064239070,-500.0,0.00021917,2]
[341652117,1731064239080,-514.70629,0.00021917,2]
[341652118,1731064239090,-500.0,0.00021917,2]
[341652119,1731064239101,-500.0,0.00021917,2]
[341652120,1731064239111,-500.0,0.00021917,2]
[341652121,1731064239121,-144.25598015,0.00021917,2]
[341652125,1731064240084,-355.74401985,0.00021917,2]
[341652126,1731064240093,-500.0,0.00021917,2]
[341652127,1731064240102,-500.0,0.00021917,2]
[341652128,1731064240111,-709.88,0.00021917,2]
[341652129,1731064240120,-500.0,0.00021917,2]
[341652130,1731064240129,-500.0,0.00021917,2]
[341652131,1731064240138,-500.0,0.00021917,2]
[341652132,1731064240147,-500.0,0.00021917,2]
[341652133,1731064240156,-680.92,0.00021917,2]
[341652134,1731064240167,-500.0,0.00021917,2]
[341652135,1731064240175,-500.0,0.00021917,2]
[341652136,1731064240184,-500.0,0.00021917,2]
[341652137,1731064240194,-500.0,0.00021917,2]
[341652138,1731064240203,-2556.9,0.00021917,2]
[341652139,1731064240212,-500.0,0.00021917,2]
[341652140,1731064240221,-1527.25,0.00021917,2]
[341652141,1731064240230,-200.49001882,0.00021917,2]
[341652142,1731064240239,-1336.73,0.00021917,2]
[341652143,1731064240248,-500.0,0.00021917,2]
[341652144,1731064240257,-500.0,0.00021917,2]
[341652145,1731064240267,-500.0,0.00021917,2]
[341652146,1731064240277,-322.36548605,0.00021917,2]
[341652147,1731064240286,-500.0,0.00021917,2]
[341652148,1731064240295,-1773.6396373,0.00021917,2]
[341652149,1731064240306,-583.00496137,0.00021917,2]
[341652150,1731064240318,-4098.71540133,0.00021917,2]
[341652151,1731064240327,-4349.9222241,0.00021917,2]
[341652164,1731064244458,-909.6677759,0.00021917,2]
[341652166,1731064244467,-0.88283088,0.00021917,2]
[341652182,1731064246022,-499.11716912,0.00021917,2]
[341652183,1731064246033,-567.46258088,0.00021917,2]
[341652184,1731064246044,-365.21580839,0.00021917,2]
[341652185,1731064246055,-520.4,0.00021917,2]
[341652186,1731064246065,-500.0,0.00021917,2]
[341652187,1731064246075,-500.0,0.00021917,2]
[341652188,1731064246085,-500.0,0.00021917,2]
[341652189,1731064246095,-500.0,0.00021917,2]
[341652190,1731064246107,-500.0,0.00021917,2]
[341652191,1731064246116,-500.0,0.00021917,2]
[341652192,1731064246129,-500.0,0.00021917,2]
[341652193,1731064246140,-500.0,0.00021917,2]
[341652194,1731064246149,-500.0,0.00021917,2]
[341652195,1731064246159,-500.0,0.00021917,2]
[341652196,1731064246169,-456.42074067,0.00021917,2]
[341652201,1731064306235,3150.41592007,0.00020843,2]
[341652202,1731064312399,694.44444444,0.00020843,2]
[341652209,1731064782110,165.273954,0.00013973,2]
[341652210,1731064926398,694.44444444,0.00020843,2]
[341653712,1731065432071,-390.13192909,0.00021001,2]
[341653898,1731065440038,-427.63664462,0.00021233,2]
[341653901,1731065440051,-266.80779982,0.00021233,2]
[341653903,1731065440060,-2530.89889021,0.00021786,2]
[341654281,1731065443833,-741.64321697,0.00021786,2]
[341654283,1731065443845,-442.71028171,0.00021786,2]
[341654495,1731065446127,-2339.83994208,0.00021786,2]
[341654497,1731065446138,-300.0,0.00021916,2]
[341654499,1731065446149,-300.0,0.00021916,2]
[341654501,1731065446159,-356.38723734,0.00021917,2]
[341654503,1731065446168,-500.0,0.00021917,2]
[341654505,1731065446178,-500.0,0.00021917,2]
[341654507,1731065446188,-500.0,0.00021917,2]
[341654509,1731065446198,-500.0,0.00021917,2]
[341654511,1731065446208,-635.16697588,0.00021917,2]
[341654513,1731065446219,-500.0,0.00021917,2]
[341654515,1731065446228,-500.0,0.00021917,2]
[341654517,1731065446238,-500.0,0.00021917,2]
[341654519,1731065446248,-374.94904593,0.00021917,2]
[341654521,1731065446257,-500.0,0.00021917,2]
[341654523,1731065446268,-500.0,0.00021917,2]
[341654525,1731065446278,-500.0,0.00021917,2]
[341654527,1731065446287,-500.0,0.00021917,2]
[341654529,1731065446297,-500.0,0.00021917,2]
[341654531,1731065446307,-500.0,0.00021917,2]
[341654533,1731065446316,-500.0,0.00021917,2]
[341654535,1731065446326,-500.0,0.00021917,2]
[341654537,1731065446336,-500.0,0.00021917,2]
[341654539,1731065446345,-500.0,0.00021917,2]
[341654541,1731065446355,-500.0,0.00021917,2]
[341654543,1731065446365,-464.27411409,0.00021917,2]
[341654545,1731065446375,-512.37220923,0.00021917,2]
[341654547,1731065446385,-500.0,0.00021917,2]
[341654549,1731065446395,-511.54163421,0.00021917,2]
[341654551,1731065446405,-348.29119973,0.00021917,2]
[341654553,1731065446415,-500.0,0.00021917,2]
[341654555,1731065446424,-249.86937082,0.00021917,2]
[341654557,1731065446434,-500.0,0.00021917,2]
[341654559,1731065446444,-550.42185286,0.00021917,2]
[341654561,1731065446453,-500.0,0.00021917,2]
[341654563,1731065446463,-500.0,0.00021917,2]
[341654565,1731065446473,-500.0,0.00021917,2]
[341654567,1731065446483,-565.73,0.00021917,2]
[341654569,1731065446492,-500.0,0.00021917,2]
[341654571,1731065446502,-520.66840443,0.00021917,2]
[341654573,1731065446512,-500.0,0.00021917,2]
[341654575,1731065446521,-500.0,0.00021917,2]
[341654577,1731065446531,-500.0,0.00021917,2]
[341654579,1731065446542,-500.0,0.00021917,2]
[341654580,1731065446552,-500.0,0.00021917,2]
[341654582,1731065446563,-500.0,0.00021917,2]
[341654584,1731065446573,-744.83,0.00021917,2]
[341654586,1731065446583,-500.0,0.00021917,2]
[341654588,1731065446592,-495.94192153,0.00021917,2]
[341654590,1731065446602,-500.0,0.00021917,2]
[341654592,1731065446611,-500.0,0.00021917,2]
[341654594,1731065446621,-652.55,0.00021917,2]
[341654596,1731065446632,-500.0,0.00021917,2]
[341654598,1731065446642,-500.0,0.00021917,2]
[341654600,1731065446652,-1281.03,0.00021917,2]
[341654602,1731065446661,-6475.51,0.00021917,2]
[341654604,1731065446670,-500.0,0.00021917,2]
[341654606,1731065446680,-500.0,0.00021917,2]
[341654608,1731065446689,-500.0,0.00021917,2]
[341654610,1731065446698,-5040.44,0.00021917,2]
[341654612,1731065446707,-500.0,0.00021917,2]
[341654614,1731065446717,-156.76832393,0.00021917,2]
[341654616,1731065446726,-500.0,0.00021917,2]
[341654618,1731065446736,-500.0,0.00021917,2]
[341654620,1731065446745,-500.0,0.00021917,2]
[341654622,1731065446754,-500.0,0.00021917,2]
[341654624,1731065446765,-500.0,0.00021917,2]
[341654626,1731065446775,-1207.48,0.00021917,2]
[341654628,1731065446785,-500.0,0.00021917,2]
[341654630,1731065446794,-243.80840274,0.00021917,2]
[341654633,1731065446809,-256.19159726,0.00021917,2]
[341654635,1731065446818,-500.0,0.00021917,2]
[341654637,1731065446827,-500.0,0.00021917,2]
[341654639,1731065446836,-500.0,0.00021917,2]
[341654641,1731065446846,-650.64,0.00021917,2]
[341654643,1731065446855,-441.88722109,0.00021917,2]
[341654645,1731065446865,-488.58438961,0.00021917,2]
[341654647,1731065446874,-500.0,0.00021917,2]
[341654649,1731065446883,-500.0,0.00021917,2]
[341654651,1731065446892,-500.0,0.00021917,2]
[341654653,1731065446901,-500.0,0.00021917,2]
[341654655,1731065446911,-150.24173145,0.00021917,2]
[341654657,1731065446920,-500.0,0.00021917,2]
[341654659,1731065446929,-260.44426752,0.00021917,2]
[341654729,1731065492535,168.765126,0.00013973,2]
[341654733,1731065538399,694.44444444,0.00020843,2]
[341654738,1731065916822,2011.0,0.0002,10]
[341654739,1731066150990,694.44444444,0.00020843,2]
[341654740,1731066170649,157.627262,0.00020563,2]
[341654741,1731066187751,168.190613,0.00013973,2]
[341654744,1731066275375,352.2643411,0.00020724,2]
[341654789,1731066622889,24879.9832979,0.00020611,2]
[341654806,1731066638355,-501.29628264,0.00020873,2]
[341654808,1731066638524,-193.1481618,0.00020873,2]
[341654809,1731066638536,-630.062995,0.0002089,2]
[341654810,1731066638546,-255.1696321,0.00020912,2]
[341654811,1731066638556,-3000.0,0.00020917,2]
[341654812,1731066638565,-151.526,0.0002095,2]
[341654813,1731066638574,-630.062995,0.00021575,2]
[341654814,1731066638584,-273.19156632,0.00021817,2]
[341654815,1731066638593,-1433.49937861,0.000219,4]
[341654816,1731066638603,-300.0,0.00021906,2]
[341654817,1731066638612,-300.0,0.00021906,2]
[341654818,1731066638621,-746.84,0.00021907,3]
[341654819,1731066638631,-373.4,0.00021907,3]
[341654821,1731066638640,-311.17,0.00021907,3]
[341654823,1731066638649,-155.58,0.00021907,3]
[341654825,1731066638659,-777.94,0.00021907,3]
[341654828,1731066638668,-237.59149156,0.00021917,2]
[341654830,1731066638678,-500.0,0.00021917,2]
[341654832,1731066638687,-504.58562343,0.00021917,2]
[341654834,1731066638696,-500.0,0.00021917,2]
[341654836,1731066638706,-528.41151678,0.00021917,2]
[341654838,1731066638715,-500.0,0.00021917,2]
[341654840,1731066638724,-500.0,0.00021917,2]
[341654842,1731066638736,-500.0,0.00021917,2]
[341654844,1731066638746,-500.0,0.00021917,2]
[341654846,1731066638756,-500.0,0.00021917,2]
[341654848,1731066638766,-500.0,0.00021917,2]
[341654850,1731066638775,-500.0,0.00021917,2]
[341654852,1731066638783,-500.0,0.00021917,2]
[341654854,1731066638793,-500.0,0.00021917,2]
[341654856,1731066638802,-500.0,0.00021917,2]
[341654858,1731066638811,-508.55158976,0.00021917,2]
[341654860,1731066638820,-500.0,0.00021917,2]
[341654862,1731066638830,-500.0,0.00021917,2]
[341654864,1731066638839,-500.0,0.00021917,2]
[341654866,1731066638848,-500.0,0.00021917,2]
[341654868,1731066638858,-500.0,0.00021917,2]
[341654870,1731066638867,-378.1070657,0.00021917,2]
[341654872,1731066638877,-500.0,0.00021917,2]
[341654874,1731066638886,-500.0,0.00021917,2]
[341654876,1731066638895,-500.0,0.00021917,2]
[341654878,1731066638904,-500.0,0.00021917,2]
[341654880,1731066638913,-509.20731736,0.00021917,2]
[341654882,1731066638922,-501.7301064,0.00021917,2]
[341654884,1731066638932,-500.0,0.00021917,2]
[341654886,1731066638941,-500.0,0.00021917,2]
[341654888,1731066638950,-500.0,0.00021917,2]
[341654890,1731066638960,-500.0,0.00021917,2]
[341654892,1731066638969,-500.0,0.00021917,2]
[341654894,1731066638979,-597.46766023,0.00021917,2]
[341654896,1731066638988,-500.0,0.00021917,2]
[341654898,1731066638998,-500.0,0.00021917,2]
[341654900,1731066639007,-500.0,0.00021917,2]
[341654902,1731066639017,-500.0,0.00021917,2]
[341654904,1731066639026,-500.0,0.00021917,2]
[341654906,1731066639035,-579.96856206,0.00021917,2]
[341654908,1731066639045,-500.0,0.00021917,2]
[341654910,1731066639054,-365.12377162,0.00021917,2]
[341654912,1731066639063,-500.0,0.00021917,2]
[341654914,1731066639072,-500.0,0.00021917,2]
[341654916,1731066639082,-500.0,0.00021917,2]
[341654918,1731066639091,-429.87334161,0.00021917,2]
[341654920,1731066639100,-500.0,0.00021917,2]
[341654922,1731066639109,-500.0,0.00021917,2]
[341654924,1731066639118,-500.0,0.00021917,2]
[341654926,1731066639127,-500.0,0.00021917,2]
[341654928,1731066639136,-455.09859796,0.00021917,2]
[341654930,1731066639145,-507.79034675,0.00021917,2]
[341654932,1731066639154,-95.8855779,0.00021917,2]
[341654934,1731066639177,-404.1144221,0.00021917,2]
[341654935,1731066639186,-505.29120413,0.00021917,2]
[341654936,1731066639196,-500.0,0.00021917,2]
[341654937,1731066639205,-500.0,0.00021917,2]
[341654938,1731066639214,-500.0,0.00021917,2]
[341654939,1731066639223,-500.0,0.00021917,2]
[341654940,1731066639235,-500.0,0.00021917,2]
[341654941,1731066639244,-500.0,0.00021917,2]
[341654942,1731066639253,-500.0,0.00021917,2]
[341654943,1731066639262,-500.0,0.00021917,2]
[341654944,1731066639271,-506.72608136,0.00021917,2]
[341654945,1731066639279,-500.0,0.00021917,2]
[341654946,1731066639289,-500.0,0.00021917,2]
[341654947,1731066639298,-500.0,0.00021917,2]
[341654948,1731066639307,-500.0,0.00021917,2]
[341654949,1731066639316,-500.0,0.00021917,2]
[341654951,1731066639326,-500.0,0.00021917,2]
[341654953,1731066639335,-244.26158918,0.00021917,2]
[341654955,1731066639344,-500.0,0.00021917,2]
[341654957,1731066639353,-500.0,0.00021917,2]
[341654959,1731066639362,-500.0,0.00021917,2]
[341654961,1731066639371,-500.0,0.00021917,2]
[341654963,1731066639381,-500.0,0.00021917,2]
[341654965,1731066639390,-394.43314306,0.00021917,2]
[341654967,1731066639399,-557.8377257,0.00021917,2]
[341654968,1731066639411,-500.0,0.00021917,2]
[341654970,1731066639420,-500.0,0.00021917,2]
[341654973,1731066639430,-500.0,0.00021917,2]
[341654975,1731066639439,-500.0,0.00021917,2]
[341654977,1731066639448,-500.0,0.00021917,2]
[341654979,1731066639458,-500.0,0.00021917,2]
[341654980,1731066639467,-500.0,0.00021917,2]
[341654982,1731066639477,-500.0,0.00021917,2]
[341654985,1731066639490,-500.0,0.00021917,2]
[341654986,1731066639500,-151.0,0.00021917,2]
[341654988,1731066639509,-306.82438,0.00021917,2]
[341654990,1731066639518,-500.0,0.00021917,2]
[341654992,1731066639527,-500.0,0.00021917,2]